bitfinex/quotes_ETHUSD_20220220
["timestamp","ask_amount","ask_price","bid_price","bid_amount"]
[1645396887490,0.08812213,2614.8,2614.7,5.42091451]
[1645396888138,0.08812213,2614.8,2614.7,3.795658]
[1645396888536,0.08812213,2614.8,2614.7,5.42093824]
[1645396889138,0.08812213,2614.8,2614.7,5.42093836]
[1645396894689,0.08812213,2614.8,2614.7,5.42092499]
[1645396895292,0.08812213,2614.8,2614.7,3.795658]
[1645396896429,0.08812213,2614.8,2614.7,3.695658]
[1645396897433,0.04608609,2614.8,2614.7,3.695658]
[1645396899693,0.04608609,2614.8,2614.7,5.3209422]
[1645396903131,0.04608609,2614.8,2614.7,3.695658]
[1645396904734,0.04608609,2614.8,2614.7,5.32094834]
[1645396906035,0.04608609,2614.8,2614.7,3.695658]
[1645396907678,0.05760759,2614.8,2614.7,3.69901147]
[1645396908681,0.05760759,2614.8,2614.7,5.32430944]
[1645396912811,0.05760759,2614.8,2614.7,5.27095597]
[1645396912812,0.09742768,2614.8,2614.7,5.27095597]
[1645396923187,0.09742768,2614.8,2614.7,4.77095597]
[1645396932689,0.08858402,2614.8,2614.7,4.77095597]
[1645396934540,0.08858402,2614.8,2614.7,3.145658]
[1645396935739,0.08858402,2614.8,2614.7,4.77101512]
[1645396937179,0.08858402,2614.8,2614.7,3.145658]
[1645396937880,0.08858402,2614.8,2614.7,4.77102761]
[1645396938282,0.08858402,2614.8,2614.7,3.145658]
[1645396939283,0.08858402,2614.8,2614.7,4.77101922]
[1645396939481,0.08858402,2614.8,2614.7,4.77101803]
[1645396944990,0.08858402,2614.8,2614.7,4.7700544]
[1645396948937,0.08858402,2614.8,2614.7,3.14469437]
[1645396950637,0.08858402,2614.8,2614.7,4.77004898]
[1645396953401,0.08858402,2614.8,2614.7,3.14469437]
[1645396953601,0.70595182,2614.8,2614.7,3.14469437]
[1645396956641,1.67558444,2614.8,2614.7,3.14469437]
[1645396956856,0.70595182,2614.8,2614.7,3.14469437]
[1645396959042,1.67558444,2614.8,2614.7,3.14469437]
[1645396960089,0.70595182,2614.8,2614.7,3.14469437]
[1645396964742,1.00595182,2614.8,2614.7,3.14469437]
[1645396965938,1.00595182,2614.8,2614.7,3.1436756]
[1645396969195,1.97558444,2614.8,2614.7,3.1436756]
[1645396970840,1.00595182,2614.8,2614.7,3.1436756]
[1645396971840,1.97558444,2614.8,2614.7,3.1436756]
[1645396972143,1.00595182,2614.8,2614.7,3.1436756]
[1645396974992,0.70595182,2614.8,2614.7,4.76905592]
[1645396979344,0.70595182,2614.8,2614.7,9.76905592]
[1645396979546,0.1912,2615.6,2614.8,0.79931103]
[1645396979547,0.96963262,2615.4,2614.8,0.79931103]
[1645396979746,0.96963262,2615.5,2614.9,1.62538032]
[1645396979952,0.96963262,2615.5,2615.0,5.1405]
[1645396980146,0.96963262,2615.5,2615.1,1.62538032]
[1645396980647,0.96963262,2615.6,2615.1,5.12538032]
[1645396980848,0.96963262,2615.7,2615.2,1.62538032]
[1645396981246,0.96963262,2615.8,2615.2,1.62538032]
[1645396981451,0.96963262,2615.8,2615.3,3.5]
[1645396981676,0.96963262,2615.8,2615.3,20.27]
[1645396981902,1.45594014,2616.0,2615.4,13.39471437]
[1645396981903,0.96963262,2616.0,2615.4,13.39471437]
[1645396982095,0.96963262,2616.0,2615.5,1.62471437]
[1645396982397,0.96963262,2615.9,2615.6,8.5]
[1645396982595,2.97614794,2616.5,2615.6,5.0]
[1645396982596,0.96963262,2616.1,2615.6,5.0]
[1645396982797,0.96963262,2616.2,2615.7,1.62458818]
[1645396983196,1.45594014,2616.5,2615.7,1.62458818]
[1645396983197,0.96963262,2616.3,2615.7,1.62458818]
[1645396983699,0.96963262,2616.2,2615.7,18.39458818]
[1645396983898,0.96963262,2616.2,2615.8,20.564]
[1645396984093,0.96963262,2616.2,2615.8,19.3719]
[1645396984298,0.96963262,2616.4,2615.8,19.3719]
[1645396984699,0.96963262,2616.5,2615.8,19.3719]
[1645396984899,0.96963262,2616.5,2615.8,7.6019]
[1645396985096,0.96829018,2616.5,2615.8,7.6019]
[1645396985555,0.96829018,2616.5,2615.9,5.0]
[1645396985750,0.96829018,2616.5,2616.1,5.0]
[1645396986152,1.45594014,2616.9,2616.1,5.0]
[1645396986351,1.45594014,2616.9,2616.2,1.87454198]
[1645396986352,1.75594014,2616.9,2616.2,1.87454198]
[1645396986551,1.75594014,2616.9,2615.9,1.2171]
[1645396986752,1.45594014,2616.9,2615.9,1.2171]
[1645396986953,1.75594014,2617.0,2615.9,1.2171]
[1645396987155,0.3,2617.0,2615.9,1.2171]
[1645396987355,2.89304014,2617.1,2615.9,1.2171]
[1645396987755,0.05945894,2616.4,2616.0,0.00383172]
[1645396990893,0.05945894,2616.4,2616.0,5.00383172]
[1645396992491,1.1908533,2617.1,2616.2,0.00427671]
[1645396993749,0.0537533,2617.1,2616.2,0.00427671]
[1645396994049,0.0537533,2617.1,2616.3,11.77]
[1645396994447,0.0537533,2617.1,2616.4,1.88038298]
[1645396995050,0.0537533,2617.1,2616.4,13.65038298]
[1645396995550,0.0537533,2617.1,2616.4,1.88038298]
[1645396995956,0.0537533,2617.1,2616.5,11.77]
[1645396996152,0.0537533,2617.1,2616.6,13.65568673]
[1645396996350,0.0537533,2617.1,2616.6,11.77]
[1645396996550,0.0537533,2617.1,2616.7,1.88568745]
[1645396997995,0.0537533,2617.1,2616.6,11.77440009]
[1645396998399,0.0537533,2617.1,2616.6,13.65868557]
[1645396998603,0.0537533,2617.1,2616.6,12.07440009]
[1645396998798,5.33e-05,2617.1,2617.0,11.77]
[1645396998996,5.33e-05,2617.1,2617.0,16.77]
[1645396999195,0.00346155,2617.5,2617.0,11.77]
[1645396999598,0.00500098,2617.8,2617.1,16.7961]
[1645396999998,0.00346201,2617.5,2617.1,16.7961]
[1645397000400,0.00346201,2617.5,2617.1,5.0261]
[1645397000645,0.00346201,2617.5,2617.2,1.89407091]
[1645397000847,0.00500098,2618.0,2617.2,1.89429158]
[1645397001047,0.00346207,2617.5,2617.1,5.0261]
[1645397001443,0.00346207,2617.5,2617.2,6.9689]
[1645397001947,0.00500098,2618.0,2617.2,6.9689]
[1645397002346,0.0034621,2617.5,2617.3,1.89434277]
[1645397002546,0.0034621,2617.5,2617.2,18.7389]
[1645397002547,0.0034621,2617.5,2617.2,6.9689]
[1645397002947,0.10988803,2617.4,2617.3,0.00439908]
[1645397003347,0.10988803,2617.4,2617.3,11.77439908]
[1645397004046,0.10988803,2617.4,2617.3,16.77439908]
[1645397004494,0.10988803,2617.4,2617.3,11.77439908]
[1645397004699,0.10988803,2617.4,2617.3,0.00439908]
[1645397005590,0.10988803,2617.4,2617.3,3.80439908]
[1645397015563,0.05988803,2617.4,2617.3,3.80439908]
[1645397017754,0.10988803,2617.4,2617.3,3.80439908]
[1645397019700,0.00988803,2617.4,2617.3,3.80439908]
[1645397022499,0.07238803,2617.4,2617.3,3.80439908]
[1645397042297,0.07238803,2617.4,2617.3,3.80354803]
[1645397042897,0.07238803,2617.4,2617.3,5.42728267]
[1645397043898,1.03794581,2617.4,2617.3,3.80354803]
[1645397044100,0.07238803,2617.4,2617.3,3.80354803]
[1645397045556,0.07238803,2617.4,2617.3,5.42729815]
[1645397045758,0.07238803,2617.4,2617.3,3.80354803]
[1645397045961,0.07238803,2617.4,2617.3,5.42728791]
[1645397046156,0.07238803,2617.4,2617.3,5.42728919]
[1645397048558,0.07238803,2617.4,2617.3,3.80354803]
[1645397052902,0.07238803,2617.4,2617.3,5.42727543]
[1645397055551,0.02238803,2617.4,2617.3,5.42727543]
[1645397057811,0.00313548,2617.5,2617.3,5.42727543]
[1645397058111,0.00313548,2617.5,2617.4,1.6237274]
[1645397058512,0.084113,2617.7,2617.4,1.6237274]
[1645397058716,0.00313546,2617.6,2617.4,1.6237274]
[1645397059513,0.00313546,2617.6,2617.3,3.80354803]
[1645397059712,1.04967078,2617.7,2617.3,3.80354803]
[1645397059913,0.00313545,2617.6,2617.3,3.80354803]
[1645397060949,1.04967078,2617.7,2617.4,1.62367476]
[1645397061148,0.00313545,2617.6,2617.4,1.62367476]
[1645397062248,0.084113,2617.7,2617.4,1.62367476]
[1645397062448,0.00313545,2617.6,2617.4,1.62367476]
[1645397062650,0.06662315,2617.5,2617.4,1.62844518]
[1645397067704,0.06662315,2617.5,2617.4,1.63280781]
[1645397072402,1.24031736,2617.8,2617.4,1.63280781]
[1645397072603,0.06702213,2617.5,2617.4,0.00913305]
[1645397072904,0.06702213,2617.5,2617.4,1.63276484]
[1645397074706,0.06702213,2617.5,2617.4,0.00913305]
[1645397077546,1.31914688,2617.7,2617.4,0.00913305]
[1645397077749,1.31592412,2617.7,2617.4,0.00913305]
[1645397077946,1.31914159,2617.7,2617.4,0.00913305]
[1645397078945,1.31592412,2617.7,2617.4,0.00913305]
[1645397079147,1.3191417,2617.7,2617.4,0.00913305]
[1645397080197,1.31592412,2617.7,2617.4,0.00913305]
[1645397080398,1.3191417,2617.7,2617.4,0.00913305]
[1645397081297,1.31592412,2617.7,2617.4,0.00913305]
[1645397081499,1.31914163,2617.7,2617.4,0.00913305]
[1645397082499,1.31592412,2617.7,2617.4,0.00913305]
[1645397082700,1.31914163,2617.7,2617.4,0.00913305]
[1645397083749,1.31592412,2617.7,2617.4,0.00913305]
[1645397083948,1.31914163,2617.7,2617.4,0.00913305]
[1645397084950,1.31592412,2617.7,2617.4,0.00913305]
[1645397085150,1.31914218,2617.7,2617.4,0.00913305]
[1645397086154,1.31592412,2617.7,2617.4,0.00913305]
[1645397086453,1.31914218,2617.7,2617.4,0.00913305]
[1645397087095,0.3535844,2617.7,2617.5,1.62355158]
[1645397087298,0.35036634,2617.7,2617.5,1.62355158]
[1645397087794,0.3535844,2617.7,2617.5,1.62355158]
[1645397088593,0.35036634,2617.7,2617.5,1.62355158]
[1645397088794,0.35358438,2617.7,2617.5,1.62355158]
[1645397089796,0.35036634,2617.7,2617.5,1.62355158]
[1645397089992,0.35358438,2617.7,2617.5,1.62355158]
[1645397090848,0.35036634,2617.7,2617.5,1.62355158]
[1645397091251,0.35358438,2617.7,2617.5,1.62355158]
[1645397092059,0.35036634,2617.7,2617.5,1.62355158]
[1645397092455,0.35358438,2617.7,2617.5,1.62355158]
[1645397093255,0.35036634,2617.7,2617.5,1.62355158]
[1645397093655,0.35358438,2617.7,2617.5,1.62355158]
[1645397094496,0.35036634,2617.7,2617.5,1.62355158]
[1645397094697,0.35036634,2617.7,2617.5,1.62225393]
[1645397094897,0.35358438,2617.7,2617.5,1.62225393]
[1645397095699,0.35036634,2617.7,2617.5,1.62225393]
[1645397095898,0.35358438,2617.7,2617.5,1.62225393]
[1645397096998,0.35036634,2617.7,2617.5,1.62225393]
[1645397097199,0.35358438,2617.7,2617.5,1.62225393]
[1645397098063,0.35036634,2617.7,2617.5,1.62225393]
[1645397098464,0.35358438,2617.7,2617.5,1.62225393]
[1645397099262,0.35036634,2617.7,2617.5,1.62225393]
[1645397099461,0.35358438,2617.7,2617.5,1.62225393]
[1645397100363,0.35358438,2617.7,2617.4,0.00913305]
[1645397100563,0.35036634,2617.7,2617.4,0.00913305]
[1645397100762,0.35358438,2617.7,2617.4,0.00913305]
[1645397101795,0.35036634,2617.7,2617.4,0.00913305]
[1645397101995,0.35358433,2617.7,2617.4,0.00913305]
[1645397102897,0.35036634,2617.7,2617.4,0.00913305]
[1645397103099,1.31914211,2617.7,2617.4,0.00913305]
[1645397104098,1.31592412,2617.7,2617.4,0.00913305]
[1645397104297,1.31914211,2617.7,2617.4,0.00913305]
[1645397105001,0.35358433,2617.7,2617.4,0.00913305]
[1645397105401,0.35036634,2617.7,2617.4,0.00913305]
[1645397105653,0.35358433,2617.7,2617.4,0.00913305]
[1645397106455,0.35036634,2617.7,2617.4,0.00913305]
[1645397106860,0.35358433,2617.7,2617.4,0.00913305]
[1645397107761,0.35036634,2617.7,2617.4,0.00913305]
[1645397107958,0.35358433,2617.7,2617.4,0.00913305]
[1645397108962,4.74891126,2617.6,2617.4,0.00913305]
[1645397109161,4.69697534,2617.6,2617.4,0.00913305]
[1645397109608,4.69697534,2617.6,2617.4,3.50913305]
[1645397109805,1.06567534,2617.6,2617.4,3.50913305]
[1645397110013,0.05358433,2617.7,2617.6,1.73161577]
[1645397110203,0.00493071,2618.2,2617.7,0.5]
[1645397110410,0.00493071,2618.3,2617.7,12.27]
[1645397110601,0.97048849,2618.5,2617.8,12.9343]
[1645397110803,0.00493071,2618.5,2617.8,12.9343]
[1645397111003,0.96555778,2618.6,2617.8,12.9343]
[1645397111202,0.00493071,2618.5,2617.8,12.9343]
[1645397111604,0.00321794,2618.3,2617.8,16.4343]
[1645397112403,0.00321794,2618.3,2617.8,16.50391019]
[1645397112604,0.00493071,2618.8,2617.9,4.9181]
[1645397112605,0.00493071,2618.6,2617.9,4.9181]
[1645397112804,0.00321796,2618.2,2618.0,3.5]
[1645397113854,0.00493071,2618.7,2618.0,3.5]
[1645397114053,0.00321793,2618.2,2618.0,3.5]
[1645397115052,1.27048849,2618.9,2618.0,3.5]
[1645397115252,0.00321793,2618.2,2618.0,3.5]
[1645397116053,0.00321793,2618.2,2617.9,22.216]
[1645397116257,0.00493071,2618.5,2617.9,22.216]
[1645397116557,0.00321793,2618.2,2618.0,3.5]
[1645397116816,0.00321793,2618.2,2617.9,10.446]
[1645397117404,0.00493071,2618.5,2617.9,10.446]
[1645397117604,0.00321795,2618.2,2618.1,0.00881927]
[1645397118506,0.00493071,2618.5,2618.1,0.00881927]
[1645397118908,0.00321793,2618.3,2618.1,0.00881927]
[1645397119710,0.00493071,2618.5,2618.1,0.00881927]
[1645397119910,0.00321792,2618.3,2618.1,3.80881927]
[1645397120756,0.00814863,2618.3,2618.1,3.80881927]
[1645397120949,1.2555658,2618.4,2618.1,3.80881927]
[1645397121151,0.00814863,2618.3,2618.1,3.80881927]
[1645397121351,0.00321792,2618.3,2618.1,3.80881927]
[1645397121551,0.00814863,2618.3,2618.1,3.80881927]
[1645397121751,0.00321792,2618.3,2618.1,3.80881927]
[1645397121954,0.00814863,2618.3,2618.1,3.80881927]
[1645397122154,1.2555658,2618.4,2618.1,3.80881927]
[1645397122352,0.00814863,2618.3,2618.1,3.80881927]
[1645397122555,0.03127597,2618.2,2618.1,3.80881927]
[1645397127604,0.01563799,2618.2,2618.1,3.80881927]
[1645397134797,0.01563799,2618.2,2618.1,3.80799571]
[1645397140398,0.31563799,2618.2,2618.1,3.80799571]
[1645397141001,0.01563799,2618.2,2618.1,3.80799571]
[1645397146909,0.98119577,2618.2,2618.1,3.80799571]
[1645397147303,1.28119577,2618.2,2618.1,3.80799571]
[1645397148204,0.98119577,2618.2,2618.1,3.80799571]
[1645397148606,0.01563799,2618.2,2618.1,3.80799571]
[1645397148806,0.98467589,2618.2,2618.1,3.80799571]
[1645397149005,0.98467821,2618.2,2618.1,3.80799571]
[1645397150006,0.98467821,2618.2,2618.1,3.8]
[1645397150205,1.28467821,2618.2,2618.1,3.78822804]
[1645397151552,1.31441907,2618.2,2618.1,3.78822804]
[1645397151752,0.31441907,2618.2,2618.1,3.78822804]
[1645397151955,6.31441907,2618.2,2618.1,3.78442804]
[1645397152152,6.31441907,2618.2,2618.0,9.571e-05]
[1645397152153,0.6057383,2618.1,2618.0,9.571e-05]
[1645397152352,4.02902019,2618.1,2618.0,9.571e-05]
[1645397152660,4.02902019,2618.1,2617.6,1.73161577]
[1645397152661,0.0008,2617.9,2617.6,1.73161577]
[1645397152852,0.9702823,2617.7,2617.6,1.73161577]
[1645397153351,0.3,2617.7,2617.6,1.73161577]
[1645397153654,3.1824522,2617.8,2617.6,1.73161577]
[1645397153850,3.18566508,2617.8,2617.6,1.73161577]
[1645397154052,4.14170228,2617.8,2617.6,1.73161577]
[1645397154320,3.17141998,2617.8,2617.6,1.73161577]
[1645397154706,3.1682071,2617.8,2617.6,1.73161577]
[1645397154907,0.9702823,2617.7,2617.6,1.73161577]
[1645397155107,3.17141998,2617.8,2617.6,1.73161577]
[1645397155806,3.1682071,2617.8,2617.6,1.73161577]
[1645397156009,3.1682071,2617.8,2617.6,5.53161577]
[1645397156207,3.1713674,2617.8,2617.6,5.53161577]
[1645397157112,3.1682071,2617.8,2617.6,5.53161577]
[1645397157313,3.17136744,2617.8,2617.6,5.53161577]
[1645397157509,3.36236744,2617.8,2617.6,5.53161577]
[1645397157911,0.01719563,2617.7,2617.6,5.54070675]
[1645397158559,1.01719563,2617.7,2617.6,5.54070675]
[1645397160955,0.01719563,2617.7,2617.6,5.54070675]
[1645397161357,1.01719563,2617.7,2617.6,5.54070675]
[1645397161559,0.01719563,2617.7,2617.6,5.54070675]
[1645397162210,1.01719563,2617.7,2617.6,5.54070675]
[1645397163106,0.01719563,2617.7,2617.6,5.54070675]
[1645397171001,0.01719563,2617.7,2617.6,7.16413227]
[1645397172802,0.00275839,2617.8,2617.6,7.17983339]
[1645397173044,0.00275839,2617.8,2617.6,5.55640787]
[1645397173849,0.0008,2617.9,2617.7,1.62334663]
[1645397174049,0.00322733,2617.8,2617.7,7.21674663]
[1645397174249,0.0008,2617.9,2617.8,0.00358819]
[1645397174446,0.0008,2617.9,2617.8,1.62693482]
[1645397177817,0.0008,2617.9,2617.8,1.64780501]
[1645397183067,0.0008,2617.9,2617.8,1.64263161]
[1645397183358,0.0008,2617.9,2617.8,1.94263161]
[1645397184402,0.0008,2617.9,2617.8,2.89800161]
[1645397185512,0.0008,2617.9,2617.8,2.59800161]
[1645397185801,0.0008,2617.9,2617.8,1.64263161]
[1645397187599,0.0008,2617.9,2617.8,15.32317161]
[1645397187801,0.0008,2617.9,2617.8,15.32814745]
[1645397188070,0.0008,2617.9,2617.8,15.48088745]
[1645397188262,0.00493071,2618.8,2618.0,11.77]
[1645397188462,0.00493071,2618.8,2618.1,2.57854663]
[1645397188663,0.00493071,2618.8,2618.2,6.48784663]
[1645397188861,0.00493071,2618.8,2618.3,1.62334663]
[1645397189262,0.00493071,2618.8,2618.2,4.8645]
[1645397189663,0.00348899,2618.7,2618.2,5.8197]
[1645397189864,0.00348899,2618.7,2618.2,17.5897]
[1645397190268,0.00348899,2618.7,2618.4,11.77]
[1645397190468,0.00348899,2618.7,2618.5,1.62291894]
[1645397190671,0.6908,2619.4,2618.5,1.62291894]
[1645397190672,0.00493071,2619.3,2618.5,1.62291894]
[1645397190866,0.00300448,2618.7,2618.5,1.62291894]
[1645397191065,0.00300448,2618.7,2618.4,11.77]
[1645397191664,0.00300448,2618.7,2618.3,6.9794]
[1645397191910,0.00493071,2619.3,2618.3,6.9794]
[1645397192110,0.00300448,2618.7,2618.3,6.9794]
[1645397192305,0.00300448,2618.7,2618.3,10.4794]
[1645397192505,0.6908,2619.4,2618.4,0.5]
[1645397192506,0.46995056,2619.4,2618.4,0.5]
[1645397192706,0.46995056,2619.4,2618.5,3.5]
[1645397193106,0.46995056,2619.4,2618.6,0.01567946]
[1645397194606,0.00300426,2619.3,2618.6,0.01567946]
[1645397195208,0.00300426,2619.3,2618.6,12.74071946]
[1645397195410,0.46995056,2619.4,2618.6,12.74071946]
[1645397195411,0.46995056,2619.4,2618.8,11.77]
[1645397195659,0.46995056,2619.4,2618.9,16.89262075]
[1645397195859,0.46995056,2619.4,2618.9,15.27]
[1645397196256,9.2323598,2620.2,2618.9,15.27]
[1645397196257,9.2323598,2620.2,2619.1,11.77]
[1645397196557,9.2323598,2620.2,2619.3,11.77]
[1645397196755,9.2323598,2620.2,2619.2,3.5]
[1645397196756,9.2323598,2620.2,2619.4,15.27]
[1645397197558,9.2323598,2620.2,2619.5,3.5]
[1645397197756,9.2323598,2620.2,2619.5,15.27]
[1645397198759,9.2323598,2620.2,2619.5,20.1091]
[1645397198957,9.2323598,2620.2,2619.7,11.77]
[1645397199157,9.2323598,2620.2,2619.7,15.27]
[1645397199403,0.00348401,2620.0,2619.7,15.27]
[1645397200202,9.2323598,2620.2,2619.7,17.47906]
[1645397200405,9.2323598,2620.2,2620.0,0.00728728]
[1645397200602,9.2323598,2620.2,2620.1,11.77]
[1645397200801,9.2323598,2620.2,2620.1,15.27]
[1645397201407,2.2823598,2620.2,2620.1,15.27]
[1645397202003,0.5,2621.0,2620.1,21.123]
[1645397202204,0.5,2621.0,2620.5,11.77]
[1645397202407,0.9543401,2622.1,2620.4,0.95439]
[1645397202408,0.96999221,2622.2,2620.6,15.27]
[1645397202803,2.14019221,2622.3,2620.6,15.57]
[1645397203056,2.14019221,2622.3,2620.8,11.77]
[1645397203255,1.1702,2622.3,2621.0,0.95416]
[1645397203456,1.52299221,2622.5,2621.2,11.77]
[1645397203457,0.96999221,2622.5,2621.2,11.77]
[1645397203664,0.1907,2622.4,2621.3,20.2747]
[1645397203857,0.1907,2622.5,2621.3,20.2747]
[1645397204256,2.21869221,2622.7,2621.3,20.2747]
[1645397204257,0.00348011,2622.0,2621.3,20.2747]
[1645397204657,0.00348011,2622.0,2621.4,11.77]
[1645397204856,0.00348011,2622.0,2621.5,15.27]
[1645397205057,0.1907,2622.6,2621.5,15.27]
[1645397205258,0.1907,2622.6,2621.5,3.5]
[1645397205259,0.00348014,2621.8,2621.5,3.5]
[1645397206264,0.1907,2622.6,2621.5,3.5]
[1645397206459,0.00348015,2621.8,2621.5,3.5]
[1645397207103,0.00348015,2621.8,2621.5,4.45396]
[1645397207302,0.00348015,2621.8,2621.6,0.95393]
[1645397207503,1.16049221,2622.8,2621.7,11.77]
[1645397207706,0.01391849,2622.2,2621.8,15.27]
[1645397207910,0.01391849,2622.2,2621.9,3.5]
[1645397208104,0.01391849,2622.2,2621.8,11.77]
[1645397208503,0.01391849,2622.2,2621.9,3.5]
[1645397208706,0.00486715,2623.0,2621.8,11.77]
[1645397208707,0.00486715,2623.0,2621.8,12.72386]
[1645397208908,0.00321558,2622.1,2621.9,3.5]
[1645397209105,0.00321558,2622.1,2621.8,13.67773]
[1645397209804,0.00486715,2623.0,2621.8,13.67773]
[1645397210004,0.00321559,2622.1,2621.9,3.5]
[1645397210208,0.00321559,2622.1,2621.9,11.77]
[1645397211056,0.82037662,2623.2,2621.9,11.77]
[1645397211259,0.00321558,2622.1,2622.0,3.5]
[1645397211462,0.00321558,2622.1,2621.9,11.77]
[1645397212158,0.68645257,2623.2,2621.9,11.77]
[1645397212359,0.68645257,2623.2,2622.0,3.5]
[1645397212561,0.00321558,2622.1,2622.0,3.5]
[1645397212761,0.00321558,2622.1,2622.0,0.02020554]
[1645397212959,0.1905,2623.1,2622.0,0.02020554]
[1645397212960,0.15657595,2623.1,2622.0,0.02020554]
[1645397213160,0.15657595,2623.1,2622.0,15.29020554]
[1645397213368,0.15657595,2623.1,2622.1,0.95378]
[1645397213561,0.15657595,2623.1,2622.2,3.5]
[1645397213963,0.68645257,2623.2,2622.3,4.9324]
[1645397214419,0.1905,2623.3,2622.4,15.27]
[1645397214617,2.4057,2623.6,2622.4,15.27]
[1645397214618,0.1905,2623.5,2622.4,15.27]
[1645397214815,2.4057,2623.6,2622.4,15.27]
[1645397215712,2.4057,2623.6,2622.5,11.77]
[1645397215910,2.4057,2623.6,2622.6,3.5]
[1645397216113,1.2181,2623.6,2622.6,3.5]
[1645397216311,1.5181,2623.6,2622.6,3.5]
[1645397217311,0.00347987,2623.2,2622.6,3.5]
[1645397217913,0.00347987,2623.2,2622.6,3.520185]
[1645397218170,0.5,2623.4,2622.6,3.520185]
[1645397218471,0.00347991,2623.0,2622.6,3.520185]
[1645397219374,0.5,2623.4,2622.6,3.520185]
[1645397219774,0.00347863,2622.9,2622.6,3.520185]
[1645397220572,0.5,2623.4,2622.6,3.520185]
[1645397220972,0.00347864,2622.9,2622.6,3.520185]
[1645397221815,0.5,2623.4,2622.6,3.520185]
[1645397222215,0.00347864,2622.9,2622.6,3.520185]
[1645397222611,0.00347864,2622.9,2622.6,15.290185]
[1645397222810,0.00347864,2622.9,2622.8,0.01897035]
[1645397223012,0.5,2623.4,2622.8,0.01897035]
[1645397223414,0.00347864,2622.9,2622.8,0.01897035]
[1645397223611,0.46739106,2623.4,2622.8,0.01897035]
[1645397224414,1.1441136,2624.0,2622.8,0.01897035]
[1645397224613,0.3,2623.9,2622.8,3.51897035]
[1645397224914,0.3,2623.9,2622.8,0.01897035]
[1645397225113,0.9536972,2623.8,2622.8,0.01897035]
[1645397225312,0.3,2623.7,2622.8,0.01897035]
[1645397225566,5.3,2623.9,2622.8,0.01897035]
[1645397225868,0.00295945,2623.4,2622.8,0.01897035]
[1645397226466,0.00778037,2623.4,2622.8,0.01897035]
[1645397226666,0.00482092,2623.4,2622.8,0.01897035]
[1645397226866,0.00830052,2623.4,2623.0,0.00176969]
[1645397227667,0.00830052,2623.4,2623.0,0.02073493]
[1645397227869,0.00482092,2623.4,2623.0,0.01896524]
[1645397228066,0.00830063,2623.4,2623.1,0.00176962]
[1645397229069,0.00482092,2623.4,2623.0,0.01896524]
[1645397229312,0.19880069,2623.4,2623.1,0.00176959]
[1645397229904,0.00830069,2623.4,2623.1,0.00176959]
[1645397230307,0.00830069,2623.4,2623.0,0.01896524]
[1645397230308,0.00482092,2623.4,2623.0,0.01896524]
[1645397230509,0.00827415,2623.4,2623.1,0.00168111]
[1645397231106,0.00345323,2623.4,2623.1,0.00168111]
[1645397232609,0.49532092,2623.7,2623.0,0.01896524]
[1645397232810,1.49532092,2623.7,2623.3,0.0436375]
[1645397233056,0.00345323,2623.4,2623.3,0.0436375]
[1645397233857,0.30482092,2623.7,2623.3,0.0436375]
[1645397234260,0.00347982,2623.5,2623.3,0.0436375]
[1645397235059,0.00482092,2623.7,2623.3,0.0436375]
[1645397235260,0.00347981,2623.5,2623.3,0.0436375]
[1645397236260,0.30482092,2623.7,2623.3,0.0436375]
[1645397236461,0.00347981,2623.5,2623.3,0.0436375]
[1645397237509,1.30482092,2623.7,2623.3,0.0436375]
[1645397237510,0.30482092,2623.7,2623.3,0.0436375]
[1645397237709,0.30482092,2623.7,2623.5,0.02608082]
[1645397237710,5.49532092,2623.7,2623.5,0.02608082]
[1645397238908,5.49880069,2623.7,2623.5,0.02608082]
[1645397239109,6.05180069,2623.7,2623.5,0.02608082]
[1645397239909,6.04832092,2623.7,2623.5,0.02608082]
[1645397240112,6.05180069,2623.7,2623.5,0.02608082]
[1645397240570,1.05180069,2623.7,2623.5,0.02608082]
[1645397240971,1.04832092,2623.7,2623.5,0.02608082]
[1645397241373,1.05180069,2623.7,2623.5,0.02608082]
[1645397242172,1.04832092,2623.7,2623.5,0.02608082]
[1645397242577,1.05180069,2623.7,2623.5,0.02608082]
[1645397243375,1.04832092,2623.7,2623.5,0.02608082]
[1645397243774,1.04832092,2623.7,2623.5,0.02688082]
[1645397243775,1.05180069,2623.7,2623.5,0.02688082]
[1645397244611,9.54832092,2623.7,2623.5,0.02688082]
[1645397244812,4.54832092,2623.7,2623.5,0.02688082]
[1645397245011,3.5,2623.6,2623.5,0.02688082]
[1645397245210,1.05340069,2623.7,2623.5,0.02688082]
[1645397245814,1.04992092,2623.7,2623.5,0.02688082]
[1645397246214,2.0233929,2623.7,2623.5,0.02688082]
[1645397246417,1.05340069,2623.7,2623.5,0.02582038]
[1645397246625,1.05340069,2623.7,2623.5,3.81424732]
[1645397246626,7.35340069,2623.7,2623.5,3.81424732]
[1645397246815,8.30730069,2623.7,2623.4,0.02111785]
[1645397247016,0.96404127,2623.6,2622.2,5.2477]
[1645397247212,0.9539696,2623.3,2622.2,5.2477]
[1645397247413,0.00482092,2623.2,2623.1,0.00176959]
[1645397247615,0.9539696,2623.3,2623.1,0.00176959]
[1645397247616,1.25879052,2623.3,2623.1,0.00176959]
[1645397248261,1.25879052,2623.3,2622.3,4.9324]
[1645397248665,1.25879052,2623.3,2623.1,0.00176962]
[1645397249062,1.25879052,2623.3,2622.3,4.9324]
[1645397249263,0.9539954,2623.1,2622.3,4.9324]
[1645397249462,0.30482092,2623.0,2622.3,4.9324]
[1645397252206,0.30482092,2623.0,2622.5,0.00176557]
[1645397252607,0.30482092,2623.0,2622.5,0.04509088]
[1645397253010,0.30482092,2623.0,2622.5,0.04332531]
[1645397253212,0.30482092,2623.0,2622.6,0.0017655]
[1645397253710,0.4672,2622.8,2622.6,0.0017655]
[1645397254210,0.4672,2622.8,2622.5,0.04332531]
[1645397254611,0.4672,2622.8,2622.6,0.00176554]
[1645397255413,0.4672,2622.8,2622.5,0.04332531]
[1645397255660,0.4672,2622.8,2622.6,0.00176554]
[1645397256665,1.4212683,2622.8,2622.5,0.04332531]
[1645397256861,1.4212683,2622.8,2622.6,0.00176554]
[1645397257061,0.00482092,2622.7,2622.6,0.00176554]
[1645397257262,1.4212683,2622.8,2622.6,0.00176554]
[1645397257664,4.76404127,2622.7,2622.6,0.00176554]
[1645397257967,4.76404127,2622.7,2621.9,1.62070329]
[1645397257968,0.9542572,2622.5,2621.9,1.62070329]
[1645397258265,3.50482092,2622.4,2622.0,1.62070329]
[1645397258467,3.50482092,2622.4,2621.4,5.1649]
[1645397258468,0.00482092,2622.4,2621.4,5.1649]
[1645397258664,3.80482092,2622.4,2621.7,1.62077686]
[1645397258864,0.00482092,2622.4,2621.7,1.62077686]
[1645397259064,0.30482092,2622.4,2621.7,1.62077686]